[Event "*** Titled Tuesday Blitz"]
[Site "Chess.com"]
[Date "2020.05.05"]
[Round "2"]
[White "Kislov_Oleg"]
[Black "crackcubano"]
[Result "1/2-1/2"]
[WhiteElo "2318"]
[BlackElo "2620"]
[TimeControl "180+1"]
[EndTime "10:19:39 PDT"]
[Termination "Game drawn - insufficient material"]

1. e4 {[%clk 0:03:00.9]} 1... c5 {[%clk 0:02:59.7]} 2. Nf3 {[%clk 0:03:00.1]}
2... d6 {[%clk 0:02:59.5]} 3. c3 {[%clk 0:03:00.5]} 3... Nf6 {[%clk 0:02:59.2]}
4. Be2 {[%clk 0:03:00.4]} 4... g6 {[%clk 0:02:58.1]} 5. O-O {[%clk 0:02:59.4]}
5... Bg7 {[%clk 0:02:58.2]} 6. Re1 {[%clk 0:02:58.6]} 6... O-O {[%clk
0:02:57.8]} 7. Bf1 {[%clk 0:02:58.7]} 7... Nc6 {[%clk 0:02:57.7]} 8. h3 {[%clk
0:02:58.2]} 8... e5 {[%clk 0:02:57.6]} 9. d4 {[%clk 0:02:54.5]} 9... b6 {[%clk
0:02:52.6]} 10. d5 {[%clk 0:02:46.8]} 10... Ne7 {[%clk 0:02:51.9]} 11. Nbd2
{[%clk 0:02:45.6]} 11... Ne8 {[%clk 0:02:46.3]} 12. Nc4 {[%clk 0:02:39.1]} 12...
h6 {[%clk 0:02:42.6]} 13. a4 {[%clk 0:02:34.7]} 13... f5 {[%clk 0:02:41.7]} 14.
exf5 {[%clk 0:02:17.4]} 14... gxf5 {[%clk 0:02:35.5]} 15. Nfxe5 {[%clk
0:02:14.9]} 15... dxe5 {[%clk 0:02:28.8]} 16. d6 {[%clk 0:02:14.9]} 16... Nxd6
{[%clk 0:02:20.9]} 17. Nxd6 {[%clk 0:01:54.6]} 17... Be6 {[%clk 0:02:21.8]} 18.
Bc4 {[%clk 0:01:49]} 18... Bxc4 {[%clk 0:02:16.8]} 19. Nxc4 {[%clk 0:01:49.9]}
19... Qxd1 {[%clk 0:02:17.1]} 20. Rxd1 {[%clk 0:01:50.1]} 20... Rad8 {[%clk
0:02:18]} 21. Be3 {[%clk 0:01:38.1]} 21... f4 {[%clk 0:02:17.6]} 22. Rxd8 {[%clk
0:01:34.5]} 22... Rxd8 {[%clk 0:02:17]} 23. Bd2 {[%clk 0:01:35.2]} 23... Ng6
{[%clk 0:02:06.3]} 24. f3 {[%clk 0:01:33.7]} 24... e4 {[%clk 0:01:58.8]} 25.
fxe4 {[%clk 0:01:31]} 25... Ne5 {[%clk 0:01:58.5]} 26. Nxe5 {[%clk 0:01:22.3]}
26... Rxd2 {[%clk 0:01:57.4]} 27. Nc4 {[%clk 0:01:22.8]} 27... Re2 {[%clk
0:01:56.9]} 28. e5 {[%clk 0:00:55.7]} 28... Bxe5 {[%clk 0:01:56.1]} 29. Kf1
{[%clk 0:00:51.2]} 29... Re4 {[%clk 0:01:54.3]} 30. Nxe5 {[%clk 0:00:51.2]}
30... Rxe5 {[%clk 0:01:54]} 31. Re1 {[%clk 0:00:48.6]} 31... Rd5 {[%clk
0:01:49]} 32. Re7 {[%clk 0:00:45.2]} 32... Rd2 {[%clk 0:01:47.4]} 33. Rxa7
{[%clk 0:00:44.6]} 33... Rxb2 {[%clk 0:01:46.6]} 34. Rb7 {[%clk 0:00:44.2]}
34... Ra2 {[%clk 0:01:27.2]} 35. Rxb6 {[%clk 0:00:40.5]} 35... Rxa4 {[%clk
0:01:25.8]} 36. Rxh6 {[%clk 0:00:40]} 36... Rc4 {[%clk 0:01:25.8]} 37. Rh4
{[%clk 0:00:27.7]} 37... Kg7 {[%clk 0:01:21.5]} 38. g3 {[%clk 0:00:16.8]} 38...
Rxc3 {[%clk 0:01:21]} 39. gxf4 {[%clk 0:00:11.2]} 39... Kf6 {[%clk 0:01:20.8]}
40. Kf2 {[%clk 0:00:08.4]} 40... Kf5 {[%clk 0:01:20.5]} 41. Ke2 {[%clk
0:00:05.9]} 41... c4 {[%clk 0:01:19.8]} 42. Kd2 {[%clk 0:00:06.2]} 42... Rf3
{[%clk 0:01:17.9]} 43. Kc2 {[%clk 0:00:05.7]} 43... Rg3 {[%clk 0:01:11.4]} 44.
Rg4 {[%clk 0:00:05.6]} 44... Rxh3 {[%clk 0:01:10.9]} 45. Rg8 {[%clk 0:00:04.6]}
45... Ke4 {[%clk 0:01:08.1]} 46. Rc8 {[%clk 0:00:03.8]} 46... Kd4 {[%clk
0:01:07.9]} 47. Rd8+ {[%clk 0:00:04.5]} 47... Kc5 {[%clk 0:01:07]} 48. Rc8+
{[%clk 0:00:05.2]} 48... Kd5 {[%clk 0:01:07]} 49. Rd8+ {[%clk 0:00:05.5]} 49...
Ke4 {[%clk 0:01:07]} 50. Rc8 {[%clk 0:00:05.4]} 50... Kd4 {[%clk 0:01:06.9]} 51.
Rd8+ {[%clk 0:00:05.7]} 51... Ke3 {[%clk 0:01:07]} 52. Re8+ {[%clk 0:00:06]}
52... Kxf4 {[%clk 0:01:06.6]} 53. Rc8 {[%clk 0:00:06.2]} 53... c3 {[%clk
0:01:05.9]} 54. Rxc3 {[%clk 0:00:06.3]} 54... Rh2+ {[%clk 0:01:05]} 55. Kb3
{[%clk 0:00:06.6]} 55... Ke5 {[%clk 0:01:04.1]} 56. Rc2 {[%clk 0:00:06.8]} 56...
Rh4 {[%clk 0:01:03.1]} 57. Rc3 {[%clk 0:00:07.1]} 57... Kd5 {[%clk 0:01:02.9]}
58. Rd3+ {[%clk 0:00:06.7]} 58... Kc5 {[%clk 0:01:02.7]} 59. Rc3+ {[%clk
0:00:07.6]} 59... Kb5 {[%clk 0:01:02.6]} 60. Rg3 {[%clk 0:00:07.9]} 60... Rh5
{[%clk 0:01:01.9]} 61. Rf3 {[%clk 0:00:07.6]} 61... Rd5 {[%clk 0:01:01.2]} 62.
Re3 {[%clk 0:00:07.5]} 62... Rd4 {[%clk 0:01:01]} 63. Rf3 {[%clk 0:00:07.7]}
63... Rb4+ {[%clk 0:01:00.8]} 64. Kc3 {[%clk 0:00:07.4]} 64... Ra4 {[%clk
0:01:00.8]} 65. Rf5+ {[%clk 0:00:08]} 65... Kc6 {[%clk 0:01:00.7]} 66. Kb3
{[%clk 0:00:08.7]} 66... Re4 {[%clk 0:01:00.3]} 67. Rf6+ {[%clk 0:00:08.7]}
67... Kc5 {[%clk 0:01:00.2]} 68. Rf3 {[%clk 0:00:09.6]} 68... Re6 {[%clk
0:00:59.1]} 69. Rc3+ {[%clk 0:00:09.5]} 69... Kb5 {[%clk 0:00:58.7]} 70. Rg3
{[%clk 0:00:09.4]} 70... Re5 {[%clk 0:00:57.8]} 71. Rd3 {[%clk 0:00:09.1]} 71...
Ka5 {[%clk 0:00:57.9]} 72. Kc4 {[%clk 0:00:07]} 72... Rb5 {[%clk 0:00:55.9]} 73.
Rd5 {[%clk 0:00:06.8]} 73... Rxd5 {[%clk 0:00:54.9]} 74. Kxd5 {[%clk 0:00:07.7]}
1/2-1/2

[Event "*** Titled Tuesday Blitz"]
[Site "Chess.com"]
[Date "2020.05.05"]
[Round "2"]
[White "Vuk2000"]
[Black "Ceejay271"]
[Result "0-1"]
[WhiteElo "2629"]
[BlackElo "2378"]
[TimeControl "180+1"]
[EndTime "10:19:40 PDT"]
[Termination "Ceejay271 won by resignation"]

1. e4 {[%clk 0:03:00.9]} 1... c5 {[%clk 0:02:59.1]} 2. g3 {[%clk 0:03:00.3]}
2... d5 {[%clk 0:02:57.8]} 3. exd5 {[%clk 0:02:59.8]} 3... Qxd5 {[%clk
0:02:58.7]} 4. Nf3 {[%clk 0:03:00]} 4... Bg4 {[%clk 0:02:56.2]} 5. Bg2 {[%clk
0:02:57.6]} 5... Qe6+ {[%clk 0:02:55.6]} 6. Kf1 {[%clk 0:02:52.4]} 6... Nc6
{[%clk 0:02:55]} 7. h3 {[%clk 0:02:47.2]} 7... Bh5 {[%clk 0:02:54.6]} 8. d3
{[%clk 0:02:35.2]} 8... Nf6 {[%clk 0:02:47.2]} 9. Nc3 {[%clk 0:02:32.8]} 9...
Qd7 {[%clk 0:02:43.1]} 10. Be3 {[%clk 0:02:27]} 10... e6 {[%clk 0:02:41.5]} 11.
Qd2 {[%clk 0:02:02.7]} 11... Be7 {[%clk 0:02:39.8]} 12. g4 {[%clk 0:01:54.3]}
12... Bg6 {[%clk 0:02:39.2]} 13. Nh4 {[%clk 0:01:54.4]} 13... Nd5 {[%clk
0:02:30.4]} 14. Nxd5 {[%clk 0:01:44.3]} 14... exd5 {[%clk 0:02:29.6]} 15. Bg5
{[%clk 0:01:36.6]} 15... O-O-O {[%clk 0:02:23.7]} 16. Re1 {[%clk 0:01:26.4]}
16... Bxg5 {[%clk 0:02:00.8]} 17. Qxg5 {[%clk 0:01:25.5]} 17... f6 {[%clk
0:02:00.2]} 18. Qd2 {[%clk 0:01:20]} 18... Bf7 {[%clk 0:01:59.3]} 19. f4 {[%clk
0:01:11.1]} 19... Rhe8 {[%clk 0:01:57.6]} 20. Kf2 {[%clk 0:01:10.2]} 20... g6
{[%clk 0:01:52.2]} 21. Nf3 {[%clk 0:01:03.6]} 21... Qd6 {[%clk 0:01:44.9]} 22.
d4 {[%clk 0:00:58.6]} 22... c4 {[%clk 0:01:39.4]} 23. c3 {[%clk 0:00:56.2]}
23... Re4 {[%clk 0:01:31.9]} 24. Rxe4 {[%clk 0:00:55.3]} 24... dxe4 {[%clk
0:01:32.8]} 25. Ne1 {[%clk 0:00:55.7]} 25... f5 {[%clk 0:01:30.2]} 26. g5 {[%clk
0:00:44.6]} 26... Ne7 {[%clk 0:01:29.6]} 27. Nc2 {[%clk 0:00:42.1]} 27... Nd5
{[%clk 0:01:29.4]} 28. Kg3 {[%clk 0:00:42.3]} 28... Re8 {[%clk 0:01:26.6]} 29.
Rf1 {[%clk 0:00:40.2]} 29... h6 {[%clk 0:01:25.7]} 30. h4 {[%clk 0:00:39.4]}
30... hxg5 {[%clk 0:01:24.9]} 31. hxg5 {[%clk 0:00:39.4]} 31... Qb6 {[%clk
0:01:09.3]} 32. Na3 {[%clk 0:00:35.8]} 32... Qc7 {[%clk 0:01:04.2]} 33. Qe2
{[%clk 0:00:35.3]} 33... Ne7 {[%clk 0:00:51.9]} 34. Nb5 {[%clk 0:00:32.3]} 34...
Qb6 {[%clk 0:00:50.6]} 35. a4 {[%clk 0:00:32.2]} 35... a6 {[%clk 0:00:50.5]} 36.
Na3 {[%clk 0:00:32.1]} 36... Qb3 {[%clk 0:00:48.5]} 37. a5 {[%clk 0:00:31.9]}
37... Kb8 {[%clk 0:00:45.4]} 38. Rh1 {[%clk 0:00:31.3]} 38... Nc6 {[%clk
0:00:39.4]} 39. Rh7 {[%clk 0:00:29.5]} 39... Bd5 {[%clk 0:00:38.1]} 40. Rd7
{[%clk 0:00:28.7]} 40... Rd8 {[%clk 0:00:37]} 41. Rxd8+ {[%clk 0:00:26.6]} 41...
Nxd8 {[%clk 0:00:37.2]} 42. Bf1 {[%clk 0:00:26]} 42... Nc6 {[%clk 0:00:32.4]}
43. Qc2 {[%clk 0:00:26]} 43... Qxc2 {[%clk 0:00:30.9]} 44. Nxc2 {[%clk
0:00:25.6]} 44... Nxa5 {[%clk 0:00:31.4]} 45. Ne3 {[%clk 0:00:25.8]} 45... Bf7
{[%clk 0:00:27.2]} 46. Bh3 {[%clk 0:00:25.6]} 46... b5 {[%clk 0:00:25.3]} 47.
Nxf5 {[%clk 0:00:25.6]} 47... gxf5 {[%clk 0:00:25.1]} 48. Bxf5 {[%clk
0:00:26.5]} 48... e3 {[%clk 0:00:21.9]} 49. g6 {[%clk 0:00:22.4]} 49... Bg8
{[%clk 0:00:21.1]} 50. Be4 {[%clk 0:00:22.1]} 50... Kc7 {[%clk 0:00:20.2]} 51.
f5 {[%clk 0:00:21.8]} 51... Kd6 {[%clk 0:00:17.9]} 52. Kf3 {[%clk 0:00:17.1]}
52... Ke7 {[%clk 0:00:16.5]} 53. Kxe3 {[%clk 0:00:17.1]} 53... Kf6 {[%clk
0:00:17.2]} 54. d5 {[%clk 0:00:13.4]} 54... Nb7 {[%clk 0:00:15.4]} 55. Kd4
{[%clk 0:00:13.4]} 55... Nd6 {[%clk 0:00:14.5]} 56. Bc2 {[%clk 0:00:13.7]} 56...
Nxf5+ {[%clk 0:00:14]} 57. Bxf5 {[%clk 0:00:13.9]} 57... Kxf5 {[%clk 0:00:14.9]}
58. d6 {[%clk 0:00:14.5]} 58... Ke6 {[%clk 0:00:15]} 59. Kc5 {[%clk 0:00:13.9]}
59... Kd7 {[%clk 0:00:15.4]} 60. g7 {[%clk 0:00:11.9]} 60... Bf7 {[%clk
0:00:15.1]} 61. Kb6 {[%clk 0:00:10.4]} 61... Kxd6 {[%clk 0:00:15.6]} 62. Kxa6
{[%clk 0:00:10.5]} 62... Kc5 {[%clk 0:00:15.8]} 63. Ka5 {[%clk 0:00:10.5]} 63...
Bg8 {[%clk 0:00:16.2]} 64. Ka6 {[%clk 0:00:09.9]} 64... Bh7 {[%clk 0:00:15.9]}
65. Ka5 {[%clk 0:00:06.5]} 65... Bg8 {[%clk 0:00:15.9]} 66. Ka6 {[%clk
0:00:06.1]} 66... b4 {[%clk 0:00:15]} 67. Ka5 {[%clk 0:00:05]} 67... b3 {[%clk
0:00:15.2]} 68. Ka4 {[%clk 0:00:03.7]} 68... Kd5 {[%clk 0:00:15.5]} 69. Kb4
{[%clk 0:00:02.2]} 69... Ke4 {[%clk 0:00:15.9]} 0-1

[Event "*** Titled Tuesday Blitz"]
[Site "Chess.com"]
[Date "2020.05.05"]
[Round "2"]
[White "WinningButNotReally"]
[Black "Dinamo81"]
[Result "1/2-1/2"]
[WhiteElo "2445"]
[BlackElo "2658"]
[TimeControl "180+1"]
[EndTime "10:19:43 PDT"]
[Termination "Game drawn - insufficient material"]

1. Nf3 {[%clk 0:03:00.9]} 1... d5 {[%clk 0:02:56.1]} 2. c4 {[%clk 0:03:00.8]}
2... e6 {[%clk 0:02:55.5]} 3. g3 {[%clk 0:03:00.7]} 3... a6 {[%clk 0:02:50.2]}
4. Bg2 {[%clk 0:02:54.3]} 4... dxc4 {[%clk 0:02:48.5]} 5. O-O {[%clk 0:02:50.4]}
5... Nf6 {[%clk 0:02:48.9]} 6. Qc2 {[%clk 0:02:47.7]} 6... c5 {[%clk 0:02:48.1]}
7. Ne5 {[%clk 0:02:45.8]} 7... Ra7 {[%clk 0:02:48.1]} 8. a4 {[%clk 0:02:44.8]}
8... b6 {[%clk 0:02:46]} 9. Nxc4 {[%clk 0:02:43.3]} 9... Bb7 {[%clk 0:02:32.3]}
10. e4 {[%clk 0:02:36.9]} 10... Nc6 {[%clk 0:02:26.6]} 11. Qb3 {[%clk
0:02:19.8]} 11... Nb4 {[%clk 0:02:11.5]} 12. Nc3 {[%clk 0:02:09.1]} 12... Be7
{[%clk 0:02:06.9]} 13. Rd1 {[%clk 0:02:03.1]} 13... O-O {[%clk 0:02:04.4]} 14.
d3 {[%clk 0:01:50.2]} 14... Bc6 {[%clk 0:01:42.5]} 15. h3 {[%clk 0:01:34.7]}
15... Ba8 {[%clk 0:01:37.5]} 16. Be3 {[%clk 0:01:31.7]} 16... Rd7 {[%clk
0:01:37]} 17. Ne5 {[%clk 0:01:28.5]} 17... Rd6 {[%clk 0:01:28.8]} 18. Ne2 {[%clk
0:01:08.5]} 18... Qc7 {[%clk 0:00:53]} 19. Nc4 {[%clk 0:01:07.3]} 19... Rd7
{[%clk 0:00:52.4]} 20. d4 {[%clk 0:01:05.4]} 20... Rfd8 {[%clk 0:00:51.1]} 21.
dxc5 {[%clk 0:01:02.1]} 21... bxc5 {[%clk 0:00:50.6]} 22. Bf4 {[%clk 0:01:00.3]}
22... Qb7 {[%clk 0:00:47.4]} 23. Ne5 {[%clk 0:00:55.6]} 23... Rxd1+ {[%clk
0:00:46]} 24. Rxd1 {[%clk 0:00:55.6]} 24... Rxd1+ {[%clk 0:00:46.4]} 25. Qxd1
{[%clk 0:00:55.3]} 25... Nxe4 {[%clk 0:00:43.9]} 26. Nc4 {[%clk 0:00:44.2]}
26... Qd5 {[%clk 0:00:38.8]} 27. Qxd5 {[%clk 0:00:40.3]} 27... Bxd5 {[%clk
0:00:37.6]} 28. Bxe4 {[%clk 0:00:31.4]} 28... Bxe4 {[%clk 0:00:37.4]} 29. Bd6
{[%clk 0:00:31.2]} 29... Bxd6 {[%clk 0:00:35.6]} 30. Nxd6 {[%clk 0:00:31.3]}
30... Bc6 {[%clk 0:00:33.5]} 31. a5 {[%clk 0:00:29.9]} 31... Nd3 {[%clk
0:00:31.5]} 32. b3 {[%clk 0:00:26.3]} 32... Bd5 {[%clk 0:00:28.5]} 33. Nc3
{[%clk 0:00:19.4]} 33... Bxb3 {[%clk 0:00:28.1]} 34. Kf1 {[%clk 0:00:19.8]}
34... Kf8 {[%clk 0:00:24.5]} 35. Ke2 {[%clk 0:00:19.6]} 35... Nb4 {[%clk
0:00:24.3]} 36. Nb7 {[%clk 0:00:18.7]} 36... Bc4+ {[%clk 0:00:23.6]} 37. Ke3
{[%clk 0:00:18.6]} 37... Nc6 {[%clk 0:00:20.5]} 38. Nxc5 {[%clk 0:00:18.2]}
38... Nxa5 {[%clk 0:00:20]} 39. Kd4 {[%clk 0:00:19.1]} 39... Bf1 {[%clk
0:00:19.3]} 40. h4 {[%clk 0:00:18.7]} 40... Nc6+ {[%clk 0:00:19.9]} 41. Ke4
{[%clk 0:00:17.9]} 41... Ke7 {[%clk 0:00:20.1]} 42. N3a4 {[%clk 0:00:17.8]}
42... f5+ {[%clk 0:00:19.2]} 43. Ke3 {[%clk 0:00:17.3]} 43... e5 {[%clk
0:00:18.6]} 44. f4 {[%clk 0:00:17.6]} 44... Bb5 {[%clk 0:00:18.3]} 45. Nb6
{[%clk 0:00:16.8]} 45... exf4+ {[%clk 0:00:16.7]} 46. Kxf4 {[%clk 0:00:16.6]}
46... g6 {[%clk 0:00:16.1]} 47. Nb3 {[%clk 0:00:16.2]} 47... a5 {[%clk
0:00:15.5]} 48. Nd5+ {[%clk 0:00:15.7]} 48... Kf7 {[%clk 0:00:14.1]} 49. Nc3
{[%clk 0:00:16.6]} 49... Bc4 {[%clk 0:00:14.3]} 50. Nc5 {[%clk 0:00:16.5]} 50...
Be6 {[%clk 0:00:12.4]} 51. Nb5 {[%clk 0:00:14.4]} 51... Bc4 {[%clk 0:00:12.8]}
52. Nd6+ {[%clk 0:00:14.5]} 52... Ke7 {[%clk 0:00:12.6]} 53. Nxc4 {[%clk
0:00:15.4]} 53... Kf6 {[%clk 0:00:12.4]} 54. Nd7+ {[%clk 0:00:14.3]} 54... Ke7
{[%clk 0:00:12.1]} 55. Nde5 {[%clk 0:00:14.7]} 55... Nd4 {[%clk 0:00:12.3]} 56.
Nxa5 {[%clk 0:00:14.3]} 56... Ne6+ {[%clk 0:00:11.8]} 57. Ke3 {[%clk 0:00:14]}
57... Kf6 {[%clk 0:00:11.1]} 58. Nac4 {[%clk 0:00:14.2]} 58... h6 {[%clk
0:00:11.2]} 59. Nd7+ {[%clk 0:00:12.8]} 59... Ke7 {[%clk 0:00:11]} 60. Nde5
{[%clk 0:00:13.7]} 60... Kf6 {[%clk 0:00:10.6]} 61. Nf3 {[%clk 0:00:14]} 61...
g5 {[%clk 0:00:10.5]} 62. Nd6 {[%clk 0:00:12.1]} 62... f4+ {[%clk 0:00:09.7]}
63. gxf4 {[%clk 0:00:12.1]} 63... Nxf4 {[%clk 0:00:10]} 64. Ne4+ {[%clk
0:00:10.6]} 64... Kf5 {[%clk 0:00:10]} 65. Nd4+ {[%clk 0:00:09.2]} 65... Kg4
{[%clk 0:00:09.6]} 66. hxg5 {[%clk 0:00:08.9]} 66... hxg5 {[%clk 0:00:10.5]} 67.
Nf6+ {[%clk 0:00:09]} 67... Kg3 {[%clk 0:00:09.9]} 68. Nf5+ {[%clk 0:00:09.2]}
68... Kh3 {[%clk 0:00:09.4]} 69. Ne4 {[%clk 0:00:08]} 69... Ng2+ {[%clk
0:00:09.6]} 70. Kf2 {[%clk 0:00:07.6]} 70... Nh4 {[%clk 0:00:10.5]} 71. Nxg5+
{[%clk 0:00:06.9]} 71... Kg4 {[%clk 0:00:10.3]} 72. Nxh4 {[%clk 0:00:07.6]}
1/2-1/2

[Event "*** Titled Tuesday Blitz"]
[Site "Chess.com"]
[Date "2020.05.05"]
[Round "2"]
[White "IsikCan"]
[Black "Chessmatus"]
[Result "0-1"]
[WhiteElo "2626"]
[BlackElo "2369"]
[TimeControl "180+1"]
[EndTime "10:19:43 PDT"]
[Termination "Chessmatus won by resignation"]

1. e4 {[%clk 0:03:00.9]} 1... e5 {[%clk 0:03:00.1]} 2. Nf3 {[%clk 0:03:01.2]}
2... Nc6 {[%clk 0:03:00.2]} 3. Bb5 {[%clk 0:03:01.8]} 3... Nf6 {[%clk
0:03:00.3]} 4. d3 {[%clk 0:03:01.8]} 4... Bc5 {[%clk 0:03:00]} 5. Bxc6 {[%clk
0:03:02]} 5... dxc6 {[%clk 0:03:00]} 6. h3 {[%clk 0:03:02]} 6... Be6 {[%clk
0:02:56.6]} 7. Nc3 {[%clk 0:03:02.1]} 7... Nd7 {[%clk 0:02:47.1]} 8. Be3 {[%clk
0:02:59.3]} 8... Qe7 {[%clk 0:02:40]} 9. Qd2 {[%clk 0:02:46.6]} 9... f6 {[%clk
0:02:38.7]} 10. a3 {[%clk 0:02:38.1]} 10... Bd6 {[%clk 0:02:30]} 11. Qe2 {[%clk
0:02:28.7]} 11... a5 {[%clk 0:02:26.1]} 12. d4 {[%clk 0:02:14.2]} 12... Nb6
{[%clk 0:01:51.2]} 13. Nd2 {[%clk 0:01:34.9]} 13... exd4 {[%clk 0:01:36.2]} 14.
Bxd4 {[%clk 0:01:35.8]} 14... Qf7 {[%clk 0:01:32.2]} 15. O-O {[%clk 0:01:28.7]}
15... O-O {[%clk 0:01:30.9]} 16. f4 {[%clk 0:01:23.4]} 16... f5 {[%clk
0:01:03.9]} 17. Rae1 {[%clk 0:00:49.3]} 17... Rae8 {[%clk 0:00:53.5]} 18. e5
{[%clk 0:00:49.7]} 18... Be7 {[%clk 0:00:52.8]} 19. Qf2 {[%clk 0:00:50.3]} 19...
Nc4 {[%clk 0:00:47.1]} 20. Nd1 {[%clk 0:00:41.7]} 20... Rd8 {[%clk 0:00:42.6]}
21. Nxc4 {[%clk 0:00:21.3]} 21... Bxc4 {[%clk 0:00:42.1]} 22. Bc3 {[%clk
0:00:21.4]} 22... Bxf1 {[%clk 0:00:35.1]} 23. Qxf1 {[%clk 0:00:22.3]} 23... Qe6
{[%clk 0:00:33.1]} 24. Kh1 {[%clk 0:00:21.7]} 24... b6 {[%clk 0:00:30.9]} 25.
Ne3 {[%clk 0:00:21.8]} 25... c5 {[%clk 0:00:29.4]} 26. Qf3 {[%clk 0:00:21.8]}
26... Rd7 {[%clk 0:00:28.2]} 27. Rg1 {[%clk 0:00:22]} 27... Kh8 {[%clk
0:00:23.9]} 28. g4 {[%clk 0:00:22.2]} 28... fxg4 {[%clk 0:00:24.3]} 29. hxg4
{[%clk 0:00:23.1]} 29... Qh6+ {[%clk 0:00:23.4]} 30. Kg2 {[%clk 0:00:22]} 30...
Qxf4 {[%clk 0:00:23.7]} 31. Qxf4 {[%clk 0:00:20.5]} 31... Rxf4 {[%clk
0:00:24.6]} 32. e6 {[%clk 0:00:19.8]} 32... Rd8 {[%clk 0:00:22.8]} 33. Nf5
{[%clk 0:00:19.8]} 33... Bf6 {[%clk 0:00:20.5]} 34. Kg3 {[%clk 0:00:19]} 34...
Re4 {[%clk 0:00:20.4]} 35. Bxf6 {[%clk 0:00:14.8]} 35... gxf6 {[%clk 0:00:21.3]}
36. e7 {[%clk 0:00:15.7]} 36... Re8 {[%clk 0:00:21.6]} 37. Rf1 {[%clk
0:00:14.6]} 37... R4xe7 {[%clk 0:00:22.1]} 38. Nxe7 {[%clk 0:00:14.9]} 38...
Rxe7 {[%clk 0:00:23]} 39. Rxf6 {[%clk 0:00:15.8]} 39... Re2 {[%clk 0:00:23.6]}
40. c4 {[%clk 0:00:08.8]} 40... Rxb2 {[%clk 0:00:23.2]} 41. Rc6 {[%clk
0:00:09.7]} 41... Rb3+ {[%clk 0:00:23.7]} 42. Kf4 {[%clk 0:00:10.4]} 42... Rxa3
{[%clk 0:00:24.2]} 43. Rxc7 {[%clk 0:00:11.1]} 43... Rc3 {[%clk 0:00:21.3]} 44.
Kg5 {[%clk 0:00:11.1]} 44... a4 {[%clk 0:00:20.9]} 45. Ra7 {[%clk 0:00:09.2]}
45... a3 {[%clk 0:00:20.8]} 46. Kh6 {[%clk 0:00:09.6]} 46... Rh3+ {[%clk
0:00:20.8]} 47. Kg5 {[%clk 0:00:10.1]} 47... Kg8 {[%clk 0:00:20.9]} 48. Kf6
{[%clk 0:00:10.4]} 48... Rf3+ {[%clk 0:00:20.3]} 49. Kg5 {[%clk 0:00:10.8]}
49... Kf8 {[%clk 0:00:20.8]} 50. Kh6 {[%clk 0:00:10.7]} 50... Rh3+ {[%clk
0:00:19.9]} 51. Kg5 {[%clk 0:00:11]} 51... Ke8 {[%clk 0:00:20.4]} 52. Kf6 {[%clk
0:00:11.5]} 52... Kd8 {[%clk 0:00:20.9]} 53. Ke6 {[%clk 0:00:12]} 53... Kc8
{[%clk 0:00:20.8]} 54. Kd6 {[%clk 0:00:12.6]} 54... Kb8 {[%clk 0:00:21.3]} 55.
Ra4 {[%clk 0:00:12.5]} 55... Kb7 {[%clk 0:00:20.8]} 56. Ke6 {[%clk 0:00:11.3]}
56... Rb3 {[%clk 0:00:21.1]} 57. Kf7 {[%clk 0:00:10]} 57... Rh3 {[%clk
0:00:20.8]} 58. Kg7 {[%clk 0:00:10]} 58... b5 {[%clk 0:00:21.2]} 59. Ra5 {[%clk
0:00:07.6]} 59... bxc4 {[%clk 0:00:21.4]} 60. Rxc5 {[%clk 0:00:07.8]} 60... a2
{[%clk 0:00:20.9]} 61. Ra5 {[%clk 0:00:08.1]} 61... Rh2 {[%clk 0:00:21.2]} 62.
Kf6 {[%clk 0:00:08.1]} 62... Kb6 {[%clk 0:00:21.6]} 63. Ra8 {[%clk 0:00:08.7]}
63... Kb5 {[%clk 0:00:22.2]} 64. Ke5 {[%clk 0:00:09.3]} 64... Kb4 {[%clk
0:00:22.5]} 65. Kd4 {[%clk 0:00:09.7]} 65... Rd2+ {[%clk 0:00:22.5]} 66. Ke3
{[%clk 0:00:09.6]} 66... Rd3+ {[%clk 0:00:23.1]} 67. Ke2 {[%clk 0:00:09.6]}
67... Ra3 {[%clk 0:00:23.7]} 0-1